bitfinex/quotes_SOLUSD_20240725
["timestamp","ask_amount","ask_price","bid_price","bid_amount"]
[1721870162275,1.42265642,175.82,175.63,21.13812513]
[1721870162476,40.44262818,175.9,175.65,20.0]
[1721870162799,5.6886,175.79,175.66,1.13777955]
[1721870163003,15.63622443,175.89,175.66,1.13777955]
[1721870163313,53.237,175.85,175.6,1.13794313]
[1721870163473,24.7743732,175.84,175.6,1.13794313]
[1721870163678,7.6743732,175.84,175.61,1.13841915]
[1721870163984,5.6878,175.82,175.61,1.13841915]
[1721870164192,65.0,175.83,175.58,1.13833201]
[1721870164193,66.42291502,175.81,175.58,1.13833201]
[1721870164384,17.1,175.78,175.56,1.13859704]
[1721870164582,21.42291502,175.81,175.24,20.0]
[1721870164583,17.1,175.56,175.24,20.0]
[1721870164791,17.1,175.44,175.41,30.0]
[1721870165073,30.13042915,175.55,175.41,30.0]
[1721870165074,24.22583111,175.43,175.41,30.0]
[1721870165292,39.02,175.46,175.21,17.1]
[1721870165293,40.44561414,175.46,175.23,20.0]
[1721870165498,17.1,175.54,175.3,20.0]
[1721870165714,1.42513828,175.53,175.31,1.14011062]
[1721870165876,17.1,175.47,175.3,1.14001773]
[1721870166077,1.42545093,175.46,175.3,1.14001773]
[1721870166279,1.42537938,175.5,175.3,1.14001773]
[1721870166474,1.42510225,175.54,175.37,1.1400818]
[1721870166681,1.42510225,175.54,175.38,1.14004942]
[1721870166999,5.6971,175.53,175.33,1.13991173]
[1721870167305,5.6977,175.51,175.33,1.13991173]
[1721870167477,34.2357,175.62,175.33,1.13991173]
[1721870167478,1.42495942,175.56,175.36,1.93974904]
[1721870167792,17.1,175.59,175.39,20.0]
[1721870167988,21.6969,175.67,175.44,20.0]
[1721870168199,1.42402011,175.66,175.45,1.13921609]
[1721870168403,1.42402011,175.66,175.37,21.1392795]
[1721870168575,18.52402011,175.66,175.43,20.0]
[1721870168774,1.42402011,175.66,175.44,21.13916265]
[1721870169094,5.6904,175.74,175.47,20.0]
[1721870169292,1.42346696,175.73,175.51,20.0]
[1721870169487,1.42346696,175.73,175.52,20.0]
[1721870169693,17.1,175.69,175.49,1.13899244]
[1721870169995,1.4238892,175.68,175.49,1.13899244]
[1721870170201,1.4238892,175.67,175.49,1.13899244]
[1721870170605,1.4238892,175.67,175.46,1.13911301]
[1721870170606,18.5238892,175.67,175.46,1.13911301]
[1721870170803,5.6942,175.62,175.39,20.0]
[1721870171004,17.1,175.59,175.41,1.13931656]
[1721870171302,1.42439876,175.59,175.41,1.13931656]
[1721870171603,1.42439876,175.59,175.41,21.13931656]
[1721870172088,18.52433644,175.69,175.41,21.13931656]
[1721870172285,17.1,175.66,175.42,45.0]
[1721870172608,1.42431784,175.65,175.43,21.13945427]
[1721870172905,39.0,175.7,175.43,21.13945427]
[1721870173124,18.5238757,175.69,175.43,21.13945427]
[1721870173293,18.5238757,175.69,175.43,1.13945427]
[1721870173486,5.6943,175.62,175.42,1.13936252]
[1721870173808,1.42413421,175.63,175.43,1.13930737]
[1721870174001,1.42404275,175.68,175.47,20.0]
[1721870174206,1.4236484,175.67,175.48,21.13891872]
[1721870174408,1.42395036,175.75,175.49,4.78176028]
[1721870174788,1.42395036,175.75,175.45,1.13877064]
[1721870174789,5.6956,175.58,175.45,1.13877064]
[1721870175115,5.6956,175.58,175.31,1.13995588]
[1721870175116,61.1008,175.56,175.31,1.13995588]
[1721870175323,18.52546412,175.55,175.26,2.3561]
[1721870175616,1.42521582,175.54,175.37,1.14017265]
[1721870175811,1.42448883,175.63,175.38,62.6426]
[1721870176010,15.6785,175.67,175.38,62.6426]
[1721870176011,7.11704377,175.66,175.42,20.0]
[1721870176213,1.42414377,175.66,175.43,1.13918435]
[1721870176386,1.42414377,175.66,175.45,20.0]
[1721870176581,1.42381556,175.69,175.48,20.0]
[1721870176901,1.42381556,175.69,175.5,20.0]
[1721870177098,1.42381556,175.69,175.51,21.13882551]
[1721870177406,1.42381556,175.69,175.52,1.13879666]
[1721870177592,1.42350977,175.7,175.52,1.13879666]
[1721870177991,1.42350977,175.7,175.48,21.1388829]
[1721870178189,1.42350977,175.7,175.49,21.13907973]
[1721870178392,1.42350977,175.7,175.5,20.0]
[1721870178617,5.6927,175.67,175.49,1.13899914]
[1721870178795,1.42388618,175.66,175.49,1.13899914]
[1721870179118,1.42388618,175.66,175.37,21.139079]
[1721870179119,5.6968,175.54,175.37,21.139079]
[1721870179303,5.6974,175.52,175.32,2.11473739]
[1721870179491,1.42514242,175.51,175.37,1.14011393]
[1721870179811,7.88981157,175.55,175.37,1.14011393]
[1721870180014,6.4653,175.55,175.37,1.14011393]
[1721870180390,7.95269601,175.63,175.43,20.0]
[1721870180711,7.95269601,175.63,175.36,21.93900174]
[1721870180712,25.05269601,175.63,175.36,21.93900174]
[1721870181007,7.95269601,175.63,175.38,1.13951132]
[1721870181209,7.95269601,175.63,175.4,20.0]
[1721870181210,50.6941,175.62,175.4,20.0]
[1721870181413,1.42430949,175.61,175.41,1.13944759]
[1721870181716,6.5282,175.63,175.44,20.0]
[1721870181904,6.5282,175.63,175.46,20.0]
[1721870182103,7.38324016,175.69,175.49,20.0]
[1721870182310,7.38324016,175.69,175.5,66.13885026]
[1721870182504,6.2244,175.71,175.52,20.0]
[1721870182722,6.2244,175.71,175.53,66.13876578]
[1721870183388,16.3977,175.74,175.53,66.13876578]
[1721870183389,16.3977,175.74,175.54,20.0]
[1721870183710,16.3977,175.74,175.55,66.13839154]
[1721870184218,22.088,175.74,175.55,66.13839154]
[1721870184785,16.3977,175.74,175.55,66.13839154]
[1721870186013,16.3977,175.74,175.59,20.0]
[1721870186195,6.1088,175.79,175.61,20.0]
[1721870186518,15.3448,175.83,175.63,20.0]
[1721870186810,15.3448,175.83,175.64,21.13792191]
[1721870187115,15.3448,175.83,175.65,20.0]
[1721870187314,15.3448,175.83,175.67,20.0]
[1721870187616,15.3448,175.83,175.68,21.13774452]
[1721870188009,5.6881,175.81,175.68,20.0]
[1721870188309,5.6881,175.81,175.61,20.0]
[1721870188310,1.42262925,175.8,175.61,1.1381034]
[1721870188616,32.4648,175.83,175.57,1.13827224]
[1721870188617,17.12,175.76,175.57,1.13827224]
[1721870188815,5.6907,175.73,175.55,1.13857685]
[1721870189121,1.42305278,175.79,175.57,20.0]
[1721870189294,1.42271683,175.82,175.59,20.0]
[1721870189501,1.42271683,175.82,175.6,21.13796416]
[1721870189695,1.42271683,175.82,175.62,20.0]
[1721870190004,1.42249357,175.82,175.63,1.13799486]
[1721870190213,1.42237799,175.82,175.64,20.0]
[1721870190399,15.3448,175.83,175.65,1.1377364]
[1721870190929,1.4221701,175.82,175.65,1.1377364]
[1721870191086,1.4221701,175.82,175.63,1.13805364]
[1721870191289,15.3448,175.83,175.63,21.13805364]
[1721870191290,16.76755565,175.83,175.63,21.13805364]
[1721870191535,16.76755565,175.83,175.63,1.13805364]
[1721870191536,18.54240415,175.82,175.63,1.13805364]
[1721870191831,1.42240415,175.82,175.63,1.13805364]
[1721870192123,1.42240415,175.82,175.59,1.13811211]
[1721870192487,18.54240415,175.82,175.59,1.13811211]
[1721870192701,17.12,175.79,175.51,20.0]
[1721870192907,17.12,175.77,175.52,31.13861594]
[1721870193129,1.42325864,175.76,175.52,31.13861594]
[1721870193432,5.6907,175.73,175.53,21.13874623]
[1721870193604,1.42336853,175.72,175.53,21.13874623]
[1721870193803,53.2211,175.8,175.54,20.0]
[1721870193804,1.42314861,175.74,175.54,20.0]
[1721870194026,1.42304489,175.79,175.57,20.0]
[1721870194214,46.42304489,175.79,175.58,1.13837779]
[1721870194603,1.42304489,175.79,175.6,20.0]
[1721870194814,1.42304489,175.79,175.58,21.13837779]
[1721870194815,1.42304489,175.79,175.61,1.13824944]
[1721870195030,1.42259818,175.82,175.63,20.0]
[1721870195308,1.42259818,175.82,175.64,1.13804174]
[1721870195620,1.42259818,175.82,175.65,1.13797468]
[1721870195813,5.688,175.81,175.62,21.13811372]
[1721870196005,7.11111629,175.8,175.62,21.13811372]
[1721870196335,15.3448,175.83,175.33,0.97490577]
[1721870196336,1.42284451,175.82,175.63,21.13827561]
[1721870196639,15.3448,175.83,175.63,21.13827561]
[1721870196640,15.3448,175.83,175.64,20.0]
[1721870196804,1.4222765,175.82,175.65,1.1378212]
[1721870197004,16.76714847,175.83,175.65,1.1378212]
[1721870197425,15.3448,175.83,175.65,1.1378212]
[1721870198501,15.3448,175.83,175.67,20.0]
[1721870198715,15.3448,175.83,175.68,21.13766578]
[1721870198901,1.42214766,175.87,175.68,21.13766578]
[1721870199328,5.6874,175.83,175.69,20.0]
[1721870199631,22.8068,175.85,175.67,1.13790323]
[1721870199820,20.16438436,175.9,175.67,1.13790323]
[1721870199821,1.42219471,175.89,175.7,1.13790323]
[1721870200026,7.10769471,175.89,175.71,1.13766561]
[1721870200211,1.42219471,175.89,175.71,1.13766561]
[1721870200625,5.6864,175.86,175.69,1.13761227]
[1721870200827,1.42223539,175.85,175.69,1.13761227]
[1721870201005,1.42208902,175.88,175.7,1.57782408]
[1721870201214,1.42208902,175.88,175.71,1.13757631]
[1721870201429,1.42197813,175.9,175.72,1.5776445]
[1721870201603,1.42189276,175.89,175.73,1.13751421]
[1721870201808,1.42189276,175.89,175.74,2.71499864]
[1721870202009,1.42189276,175.89,175.75,1.5773752]
[1721870202226,1.42197618,175.94,175.76,1.13758094]
[1721870202531,1.42197618,175.94,175.77,1.57719572]
[1721870202751,17.12,175.92,175.77,1.57719572]
[1721870202937,1.42185584,175.91,175.77,1.57719572]
[1721870204132,1.42170394,175.92,175.77,1.57719572]
[1721870204321,17.12,175.93,175.77,1.57719572]
[1721870204526,1.42172519,175.92,175.77,2.71457587]
[1721870204825,1.42169928,175.94,175.77,2.71457587]
[1721870205230,17.12,175.93,175.77,1.57719572]
[1721870205549,1.42175114,175.92,175.77,2.71459663]
[1721870205724,1.42175114,175.92,175.77,1.57719572]
[1721870205925,1.42175114,175.92,175.77,2.7145326]
[1721870206324,1.42147492,175.94,175.77,2.7145326]
[1721870206754,24.22527492,175.94,175.77,1.57719572]
[1721870207060,17.12,175.93,175.77,1.57719572]
[1721870207351,5.6849,175.91,175.77,1.57719572]
[1721870207536,1.42182027,175.9,175.77,1.57719572]
[1721870207732,1.42173089,175.89,175.77,1.57719572]
[1721870208753,1.42173503,175.88,175.77,1.57719572]
[1721870208969,1.42173503,175.93,175.77,1.57719572]
[1721870209124,1.4216921,175.92,175.77,1.57719572]
[1721870209323,17.12,175.91,175.77,1.57719572]
[1721870209519,17.12,175.89,175.77,1.57719572]
[1721870209752,1.42205866,175.88,175.77,1.57719572]
[1721870210046,22.4115,175.96,175.77,1.57719572]
[1721870210218,63.54178127,175.95,175.77,1.57719572]
[1721870210422,22.8038,175.94,175.77,1.57719572]
[1721870210622,1.42178166,175.93,175.77,2.71462105]
[1721870210847,1.42168621,175.92,175.77,1.57719572]
[1721870211645,5.6849,175.91,175.77,1.57719572]
[1721870211821,18.54204408,175.9,175.77,1.57719572]
[1721870212133,1.42198723,175.89,175.77,1.57719572]
[1721870214043,18.54189564,175.93,175.77,1.57719572]
[1721870214350,1.42171073,175.92,175.77,1.57719572]
[1721870215240,1.42171208,175.94,175.77,1.57719572]
[1721870215422,7.10561208,175.94,175.77,1.57719572]
[1721870215627,5.6847,175.91,175.77,1.57719572]
[1721870215853,1.42179427,175.9,175.77,1.57719572]
[1721870216028,1.4218793,175.89,175.77,1.57719572]
[1721870216948,17.12,175.93,175.77,1.57719572]
[1721870217254,5.684,175.94,175.78,1.13746963]
[1721870217255,1.42183704,175.94,175.78,1.13746963]
[1721870217839,1.42183704,175.94,175.77,22.71452064]
[1721870218042,5.6842,175.93,175.77,1.57719572]
[1721870218242,18.54174914,175.92,175.77,1.57719572]
[1721870219367,5.6852,175.9,175.77,1.57719572]
[1721870219541,1.42203509,175.89,175.77,1.57719572]
[1721870220473,24.22743509,175.89,175.77,1.57719572]
[1721870220686,17.12,175.86,175.61,21.13776974]
[1721870220846,17.12,175.8,175.64,1.57836308]
[1721870221044,1.42274034,175.84,175.68,20.0]
[1721870221347,5.6848,175.91,175.69,2.7156463]
[1721870221653,1.42208312,175.9,175.7,1.57782408]
[1721870221859,1.4220949,175.89,175.71,1.13767592]
[1721870222062,18.54209287,175.94,175.72,1.5776445]
[1721870222350,17.12,175.92,175.72,1.5776445]
[1721870222672,17.12,175.85,175.72,1.5776445]
[1721870222859,5.6886,175.79,175.66,30.0]
[1721870223058,17.12,175.76,175.63,3.6426]
[1721870223260,1.42316922,175.75,175.59,0.97304505]
[1721870223449,1.42316922,175.75,175.6,1.57872261]
[1721870223753,21.5019,175.88,175.62,20.0]
[1721870223964,5.6873,175.83,175.63,32.71648125]
[1721870224150,21.5019,175.88,175.63,32.71648125]
[1721870224151,1.42263273,175.82,175.64,1.57836308]
[1721870224352,21.5019,175.88,175.64,1.57836308]
[1721870224353,1.42244969,175.87,175.65,1.13795975]
[1721870224554,18.54244969,175.87,175.66,1.57818337]
[1721870224777,18.54244969,175.87,175.67,1.13788297]
[1721870225073,1.42235271,175.92,175.71,20.0]
[1721870225277,1.42180374,175.94,175.74,20.0]
[1721870225474,18.54180374,175.94,175.75,67.71469329]
[1721870225683,18.54180374,175.94,175.76,1.57728545]
[1721870225856,1.42180374,175.94,175.77,1.1373181]
[1721870226057,6.74114657,175.99,175.79,20.0]
[1721870226269,0.7996431,175.99,175.83,20.0]
[1721870226453,0.7996431,175.99,175.84,67.71330476]
[1721870226657,0.7996431,175.99,175.85,1.5764782]
[1721870226853,1.42093478,175.98,175.85,1.5764782]
[1721870227253,1.42093478,175.98,175.73,20.0]
[1721870227552,17.12,175.96,175.75,21.13704047]
[1721870227751,1.42148123,175.95,175.76,66.57728545]
[1721870227984,1.42148123,175.95,175.77,2.71437908]
[1721870228283,17.12,175.9,175.78,1.57710599]
[1721870228490,5.6859,175.88,175.78,1.57710599]
[1721870228651,24.22846974,175.87,175.74,30.0]
[1721870228855,18.54226974,175.87,175.72,3.6426]
[1721870229170,1.42235679,175.92,175.73,2.71544015]
[1721870229355,1.42235679,175.92,175.74,2.71494317]
[1721870229556,5.6854,175.89,175.75,1.5773752]
[1721870229770,1.42209958,175.88,175.75,1.5773752]
[1721870230377,1.4218896,175.9,175.75,1.5773752]
[1721870230580,1.42189255,175.89,175.75,1.5773752]
[1721870231191,17.12,175.79,175.64,3.6426]
[1721870231472,17.12,175.79,175.65,1.57827322]
[1721870231473,1.42283821,175.78,175.65,1.57827322]
[1721870231985,5.6877,175.82,175.65,1.57827322]
[1721870232155,17.12,175.75,175.65,1.57827322]
[1721870232354,38.52,175.87,175.59,0.97304505]
[1721870232355,20.0,175.95,175.61,38.52]
[1721870232674,5.6861,175.87,175.66,20.0]
[1721870232882,0.83488426,175.86,175.67,2.71601088]
[1721870233065,0.83488426,175.86,175.68,1.57800371]
[1721870233378,17.12,175.81,175.64,1.13825404]
[1721870233555,0.83488426,175.8,175.64,1.13825404]
[1721870233756,0.83488426,175.85,175.65,1.13823664]
[1721870234068,0.83488426,175.85,175.66,20.0]
[1721870234264,0.83488426,175.88,175.68,20.0]
[1721870234465,0.83488426,175.88,175.69,1.1376698]
[1721870234872,17.12,175.87,175.67,1.13775716]
[1721870235054,5.6868,175.85,175.67,1.13775716]
[1721870235377,17.95488426,175.85,175.68,1.13808055]
[1721870235567,17.95488426,175.85,175.64,1.13792959]
[1721870235764,0.83488426,175.85,175.63,1.13808591]
[1721870236083,0.83488426,175.88,175.66,20.0]
[1721870236264,0.83488426,175.88,175.64,30.0]
[1721870236265,17.12,175.86,175.64,30.0]
[1721870236579,22.4778,175.81,175.56,42.1626]
[1721870236785,20.83488426,175.8,175.56,4.78110521]
[1721870237078,39.35488426,175.79,175.56,3.6426]
[1721870237275,17.12,175.77,175.56,4.78125881]
[1721870237496,5.6912,175.71,175.56,3.6426]
[1721870237652,17.12,175.68,175.52,3.6426]
[1721870237858,0.83488426,175.67,175.47,24.5758]
[1721870238164,0.83488426,175.67,175.55,0.97469709]
[1721870238484,0.83488426,175.67,175.47,4.5758]
[1721870238691,5.6935,175.64,175.54,0.97474053]
[1721870238856,17.95488426,175.63,175.47,3.6426]
[1721870239371,22.8155,175.58,175.41,1.13932457]
[1721870239597,6.53068426,175.57,175.39,5.7155192]
[1721870239880,5.6965,175.55,175.45,0.97530459]
[1721870240089,0.83488426,175.54,175.39,3.6426]
[1721870240263,0.83488426,175.54,175.42,0.97535087]
[1721870240665,0.83488426,175.54,175.36,0.7996431]
[1721870240666,5.6976,175.52,175.36,0.7996431]
[1721870240880,0.83488426,175.54,175.39,0.97556876]
[1721870241078,0.83488426,175.57,175.4,1.13969086]
[1721870241273,5.6974,175.52,175.36,0.7996431]
[1721870241577,0.83488426,175.51,175.39,0.97549531]
[1721870241782,0.83488426,175.51,175.36,0.7996431]
[1721870241783,0.83488426,175.5,175.36,1.93971905]
[1721870241961,0.83488426,175.5,175.39,0.97547478]
[1721870242161,0.83488426,175.61,175.4,1.13973574]
[1721870242364,0.83488426,175.6,175.42,20.0]
[1721870242690,0.83488426,175.63,175.43,1.13934542]
[1721870242868,0.83488426,175.64,175.47,20.0]
[1721870243076,5.6929,175.66,175.48,46.13913314]
[1721870243387,6.52798426,175.65,175.49,20.0]
[1721870243683,0.83488426,175.64,175.49,20.0]
[1721870244055,0.83488426,175.71,175.5,45.0]
[1721870244256,38.52,175.72,175.51,21.1389899]
[1721870244257,0.83488426,175.7,175.51,21.1389899]
[1721870244464,23.168,175.73,175.52,65.0]
[1721870244770,0.83488426,175.76,175.56,20.0]
[1721870245077,0.83488426,175.76,175.57,46.1384966]
[1721870245282,0.83488426,175.76,175.58,21.138497]
[1721870245489,6.52448426,175.76,175.59,45.0]
[1721870245660,5.6912,175.71,175.6,20.0]
[1721870245860,0.83488426,175.7,175.58,20.0]
[1721870246090,0.83488426,175.69,175.58,20.0]
[1721870246274,0.83488426,175.73,175.59,1.13855841]
[1721870246470,0.83488426,175.73,175.54,1.13873598]
[1721870246663,0.83488426,175.73,175.55,1.13874898]
[1721870246976,5.691,175.72,175.55,21.13874898]
[1721870247175,0.83488426,175.71,175.56,45.0]
[1721870247401,0.83488426,175.7,175.57,20.0]
[1721870247710,61.58050281,175.77,175.57,20.0]
[1721870248106,50.14990281,175.77,175.58,46.13874544]
[1721870248309,22.4666,175.81,175.59,20.0]
[1721870248517,0.83488426,175.8,175.59,21.1384074]
[1721870248694,17.95488426,175.79,175.59,20.0]
[1721870248901,17.95488426,175.79,175.6,46.13861632]
[1721870248902,0.83488426,175.79,175.6,46.13861632]
[1721870249107,5.6894,175.77,175.61,21.1385106]
[1721870249418,17.95488426,175.76,175.61,21.1385106]
[1721870249617,23.64458426,175.76,175.61,21.1385106]
[1721870249815,17.95488426,175.76,175.61,21.1385106]
[1721870250009,11.63054079,175.8,175.61,21.1385106]
[1721870250207,0.83488426,175.79,175.62,45.0]
[1721870250402,60.9866,175.81,175.63,21.13826884]
[1721870250403,0.83488426,175.8,175.63,21.13826884]
[1721870250608,6.52358426,175.79,175.64,45.0]
[1721870250797,0.83488426,175.79,175.65,20.0]
[1721870250999,0.83488426,175.78,175.53,21.13825753]
[1721870251198,0.83488426,175.78,175.55,30.0]
[1721870251429,0.83488426,175.78,175.56,41.13827173]
[1721870251617,0.83488426,175.78,175.56,21.13827173]
[1721870251924,5.93952388,175.85,175.71,20.0]
[1721870252215,5.6841,175.93,175.72,41.13752904]
[1721870252419,17.95488426,175.92,175.72,21.13752904]
[1721870252610,17.12,175.89,175.72,20.0]
[1721870252919,0.83488426,175.88,175.64,21.13787845]
[1721870253122,6.52078426,175.88,175.68,1.13787845]
[1721870253300,0.83488426,175.88,175.68,21.13787845]
[1721870253500,0.83488426,175.88,175.69,65.0]
[1721870253701,0.83488426,175.88,175.7,1.1377576]
[1721870253915,17.12,175.87,175.71,1.13775736]
[1721870254116,0.83488426,175.86,175.71,1.13775736]
[1721870254316,0.83488426,175.85,175.69,65.0]
[1721870254516,17.12,175.83,175.63,1.13775744]
[1721870254712,17.12,175.79,175.59,21.13831325]
[1721870254936,0.83488426,175.78,175.59,1.13831325]
[1721870255118,0.83488426,175.84,175.59,1.13831325]
[1721870255325,0.7996431,175.99,175.7,38.52]
[1721870255508,0.7996431,175.99,175.79,20.0]
[1721870255830,0.83488426,175.98,175.81,3.6426]
[1721870256002,0.83488426,175.98,175.82,1.13700416]
[1721870256207,0.83488426,175.98,175.82,46.13700416]
[1721870256423,0.83488426,175.98,175.83,21.13708408]
[1721870256727,6.51738426,175.98,175.81,24.7795983]
[1721870256913,5.6828,175.97,175.82,45.0]
[1721870257240,0.83488426,175.97,175.83,21.13712896]
[1721870257415,6.51798426,175.97,175.83,20.0]
[1721870257726,0.83488426,175.97,175.83,20.0]
[1721870257905,0.83488426,175.97,175.77,21.13718861]
[1721870258110,0.83488426,175.97,175.78,45.0]
[1721870258429,0.83488426,175.97,175.77,1.1372584]
[1721870258430,5.6844,175.92,175.77,45.0]
[1721870258606,55.64,175.98,175.78,20.0]
[1721870258607,0.83488426,175.91,175.78,20.0]
[1721870258813,0.83488426,175.91,175.7,20.0]
[1721870258814,0.83488426,175.91,175.71,1.13740358]
[1721870259112,21.739,175.9,175.71,1.13763607]
[1721870259322,0.83488426,175.89,175.71,1.13763607]
[1721870259826,0.83488426,175.89,175.71,21.13763607]
[1721870260032,0.83488426,175.89,175.71,1.13763607]
[1721870260226,0.83488426,175.89,175.7,1.1375259]
[1721870260429,5.6859,175.88,175.7,20.0]
[1721870260728,0.83488426,175.87,175.7,20.0]
[1721870260935,0.83488426,175.87,175.69,1.13764424]
[1721870261306,0.83488426,175.87,175.59,3.6426]
[1721870261509,5.687,175.84,175.64,20.0]
[1721870261708,0.83488426,175.83,175.65,1.13803895]
[1721870261934,0.83488426,175.82,175.65,1.13803895]
[1721870262116,21.739,175.9,175.66,20.0]
[1721870262117,0.83488426,175.89,175.66,20.0]
[1721870262319,45.83488426,175.89,175.67,1.13784287]
[1721870262505,45.83488426,175.89,175.68,1.13784318]
[1721870262714,22.57388426,175.9,175.69,39.65784375]
[1721870263044,22.57388426,175.9,175.7,30.0]
[1721870263045,0.83488426,175.89,175.7,30.0]
[1721870263350,0.83488426,175.89,175.71,46.13762214]
[1721870263516,0.83488426,175.89,175.72,20.0]
[1721870263712,0.83488426,175.89,175.73,46.13757742]
[1721870263936,0.83488426,175.89,175.74,20.0]
[1721870264518,0.83488426,175.89,175.67,20.0]
[1721870264519,0.83488426,175.89,175.68,1.1376457]
[1721870264714,0.83488426,175.89,175.68,66.1376457]
[1721870265222,21.739,175.9,175.72,20.0]
[1721870265543,15.4377,175.9,175.75,20.0]
[1721870265741,6.5254,175.97,175.78,20.0]
[1721870265932,6.5254,175.97,175.8,20.0]
[1721870266141,6.5254,175.97,175.81,21.13700554]
[1721870266325,6.5254,175.97,175.82,45.0]
[1721870266638,6.5254,175.97,175.83,21.13690351]
[1721870266839,5.6844,175.92,175.76,24.25666503]
[1721870267052,0.83488426,175.91,175.77,50.0]
[1721870267219,21.0773,175.85,175.74,6.5254]
[1721870267420,0.83488426,175.84,175.69,1.13760822]
[1721870268229,0.83488426,175.84,175.65,1.1378163]
[1721870268623,6.2798,175.83,175.65,1.1378163]
[1721870268853,0.83488426,175.82,175.63,1.13800525]
[1721870269045,23.64258426,175.82,175.63,1.13800525]
[1721870269652,0.83488426,175.91,175.72,20.0]
[1721870269828,0.83488426,175.98,175.75,20.0]
[1721870270028,0.83488426,175.98,175.86,14.2153]
[1721870270220,5.6829,175.97,175.89,5.6853]
[1721870270429,0.83488426,175.96,175.92,5.6843]
[1721870270621,6.4820431,175.99,175.77,21.13718943]
[1721870270622,0.83488426,175.98,175.93,14.2099]
[1721870270949,0.83488426,175.98,175.94,5.6837]
[1721870271146,0.83488426,175.97,175.93,14.2099]
[1721870271635,0.83488426,175.97,175.79,1.13691022]
[1721870271841,0.83488426,175.97,175.8,1.137258]
[1721870272020,0.7996431,175.99,175.8,1.137258]
[1721870272225,0.7996431,175.99,175.82,20.0]
[1721870272424,0.7996431,175.99,175.95,5.6833]
[1721870272627,0.7996431,175.99,175.94,14.2088]
[1721870272854,0.7996431,175.99,175.96,5.683]
[1721870274260,1.63452736,175.99,175.9,14.2122]
[1721870274428,0.7996431,175.99,175.93,14.2095]
[1721870274629,0.83488426,175.98,175.93,14.2095]
[1721870275061,6.51738426,175.98,175.89,5.6851]
[1721870275244,17.12,175.97,175.88,14.2136]
[1721870275553,0.83488426,175.96,175.89,5.6852]
[1721870275751,0.7996431,175.99,175.88,14.2136]
[1721870275944,1.63452736,175.99,175.79,1.13699665]
[1721870276154,1.63452736,175.99,175.91,14.2115]
[1721870276155,0.83488426,175.98,175.91,14.2115]
[1721870276769,17.95488426,175.98,175.92,5.6843]
[1721870276923,0.7996431,175.99,175.94,14.2087]
[1721870277233,0.7996431,175.99,175.97,14.2064]
[1721870277760,0.7996431,175.99,175.95,5.6834]
[1721870277956,0.7996431,175.99,175.96,5.6829]
[1721870278267,0.7996431,175.99,175.94,5.6835]
[1721870278437,1.63452736,175.99,175.94,5.6835]
[1721870279062,0.83488426,175.98,175.92,14.2102]
[1721870279359,0.83488426,175.98,175.78,1.13698255]
[1721870279360,22.804,175.93,175.78,1.13698255]
[1721870279545,17.12,175.91,175.72,1.13742396]
[1721870279742,0.83488426,175.9,175.72,1.13742396]
[1721870279947,0.83488426,175.89,175.72,1.13742396]
[1721870280461,5.6865,175.86,175.78,5.6887]
[1721870280652,17.12,175.83,175.77,5.6892]
[1721870280855,0.83488426,175.82,175.68,1.13790729]
[1721870281045,22.8079,175.81,175.73,5.6902]
[1721870281239,16.3731,175.85,175.62,1.13809309]
[1721870281240,17.12,175.79,175.62,1.13809309]
[1721870281446,0.83488426,175.78,175.62,1.13809309]
[1721870281760,16.3731,175.85,175.62,1.13809309]
[1721870281761,16.3731,175.85,175.67,20.0]
[1721870282058,16.3731,175.85,175.7,20.0]
[1721870282240,6.0833,175.88,175.87,5.686]
[1721870282438,16.3685,175.93,175.76,20.0]
[1721870282753,16.3685,175.93,175.91,5.6846]
[1721870283060,16.3685,175.93,175.78,20.0]
[1721870283361,16.3685,175.93,175.79,66.1371272]
[1721870283559,16.3685,175.93,175.9,5.685]
[1721870283738,33.4885,175.93,175.8,1.13712791]
[1721870283935,17.12,175.91,175.74,1.13742114]
[1721870284155,0.83488426,175.9,175.71,1.13742114]
[1721870284461,17.12,175.87,175.79,5.6883]
[1721870284662,0.83488426,175.86,175.71,1.13774168]
[1721870284848,17.95488426,175.9,175.71,1.13774168]
[1721870285047,16.3685,175.93,175.71,1.13774168]
[1721870285048,17.12,175.88,175.71,1.13774168]
[1721870285354,17.12,175.88,175.69,1.13767594]